bitfinex/quotes_ETHUSD_20240530
["timestamp","ask_amount","ask_price","bid_price","bid_amount"]
[1717038908448,2.4734,3782.2,3781.5,0.799]
[1717038908626,9.7514,3782.4,3781.5,0.799]
[1717038909749,2.64393,3782.3,3781.5,0.799]
[1717038910343,2.64393,3782.3,3781.3,0.799]
[1717038910547,2.64393,3782.3,3781.4,0.6572523]
[1717038910733,3.44293,3782.3,3781.4,0.6572523]
[1717038911754,2.64393,3782.3,3781.4,0.6572523]
[1717038912769,3.21609258,3782.3,3781.4,0.6572523]
[1717038914619,2.64413,3782.0,3781.4,0.6572523]
[1717038914855,2.64413,3782.0,3781.2,2.659443]
[1717038914856,2.64413,3782.0,3781.5,0.41156953]
[1717038916561,2.64413,3782.0,3781.3,0.799]
[1717038916562,2.64429,3781.8,3781.0,1.5]
[1717038916768,2.64453,3781.4,3781.0,1.5]
[1717038918638,2.64453,3781.4,3781.1,0.799]
[1717038919438,2.3297,3781.8,3781.1,0.799]
[1717038921350,10.02424,3781.9,3781.1,0.799]
[1717038921561,10.02424,3781.9,3781.2,0.46497]
[1717038921730,2.64424,3781.9,3781.2,0.46497]
[1717038921930,2.64424,3781.9,3781.3,0.799]
[1717038923332,2.2957,3782.1,3781.5,0.799]
[1717038923687,7.38,3782.3,3781.9,0.799]
[1717038923865,2.4718,3782.7,3781.9,0.799]
[1717038924079,2.4718,3782.7,3781.4,5.07851]
[1717038924080,3.04390591,3782.7,3782.1,0.799]
[1717038924443,2.4718,3782.7,3782.1,0.799]
[1717038924751,3.04386664,3782.7,3782.1,0.799]
[1717038925172,7.38,3782.8,3782.3,0.799]
[1717038926535,7.38,3782.8,3782.1,3.0922]
[1717038926735,7.38,3782.8,3782.2,0.30922]
[1717038929481,7.38,3782.8,3782.3,0.799]
[1717038930539,2.64352,3782.9,3782.3,0.799]
[1717038931255,7.38,3783.3,3782.6,2.3041]
[1717038931471,2.64318,3783.4,3782.6,2.3041]
[1717038931651,2.64318,3783.4,3782.6,2.61441]
[1717038935084,2.64318,3783.4,3782.7,0.799]
[1717038935283,7.38,3783.7,3782.9,0.799]
[1717038936650,7.38,3783.7,3782.6,2.61441]
[1717038936892,7.38,3783.7,3782.8,0.799]
[1717038939991,7.38,3783.7,3782.7,0.261441]
[1717038940190,7.38,3783.7,3782.8,0.799]
[1717038941997,7.38,3783.7,3782.7,0.261441]
[1717038942292,2.64299,3783.6,3782.8,0.799]
[1717038942492,4.524189,3783.6,3782.6,2.3041]
[1717038942685,2.64312,3783.4,3782.6,2.3041]
[1717038943810,2.64333,3783.1,3782.0,2.4455]
[1717038944017,3.44233,3783.1,3782.1,0.799]
[1717038944313,3.44233,3783.1,3782.2,0.32445]
[1717038944488,2.64333,3783.1,3782.3,0.799]
[1717038946495,2.64333,3783.1,3782.5,0.799]
[1717038946811,2.64333,3783.1,3782.8,2.3855]
[1717038948211,2.64333,3783.1,3782.8,2.70395]
[1717038948402,2.64298,3783.6,3782.8,2.70395]
[1717038948897,2.64298,3783.6,3782.9,0.799]
[1717038952180,2.64298,3783.6,3782.8,2.70395]
[1717038952181,2.64298,3783.6,3783.1,0.799]
[1717038952516,2.64298,3783.6,3782.9,0.799]
[1717038952678,2.64298,3783.6,3783.0,0.350295]
[1717038954016,2.64298,3783.6,3783.1,0.799]
[1717038956016,2.64298,3783.6,3783.0,0.350295]
[1717038961514,2.64298,3783.6,3782.8,2.3855]
[1717038963135,2.64298,3783.6,3782.9,0.799]
[1717038967295,2.64298,3783.6,3782.5,5.02283]
[1717038967501,2.4299,3783.5,3782.8,0.799]
[1717038970541,2.4299,3783.5,3782.5,5.02283]
[1717038970752,2.4299,3783.5,3782.7,0.799]
[1717038971109,3.00184717,3783.5,3782.7,0.799]
[1717038973124,2.64314,3783.4,3782.6,0.502283]
[1717038973308,2.64314,3783.4,3782.6,1.301283]
[1717038974442,2.64314,3783.4,3782.6,0.502283]
[1717038974745,2.64314,3783.4,3782.6,1.301283]
[1717038975347,2.4454,3783.3,3782.4,0.799]
[1717038975549,2.4454,3783.3,3782.4,2.09689222]
[1717038976049,3.01737218,3783.3,3782.4,2.09689222]
[1717038977430,3.01737218,3783.3,3782.4,1.29789222]
[1717038977630,3.01737218,3783.3,3782.2,0.32445]
[1717038977832,2.6433,3783.2,3782.4,0.799]
[1717038978033,3.21527218,3783.2,3782.4,0.799]
[1717038978237,2.3289,3783.1,3782.2,1.62234222]
[1717038978439,2.3289,3783.1,3782.3,0.799]
[1717038980530,2.3289,3783.1,3782.5,0.799]
[1717038980735,2.3289,3783.1,3782.5,1.04113422]
[1717038992861,2.3289,3783.1,3782.5,0.24213422]
[1717038993073,2.3289,3783.1,3782.4,0.799]
[1717038993465,2.3289,3783.1,3782.2,0.32445]
[1717038993667,2.3289,3783.1,3782.3,0.799]
[1717038994956,2.3289,3783.1,3782.0,2.64403]
[1717038995257,2.3289,3783.1,3782.3,0.799]
[1717038998095,2.3289,3783.1,3782.0,2.64403]
[1717038998260,2.3289,3783.1,3782.3,0.799]
[1717038998657,2.64341,3783.0,3782.3,0.799]
[1717038998862,2.3409,3782.9,3782.3,0.799]
[1717039000257,2.3409,3782.9,3782.0,2.64403]
[1717039000460,2.64354,3782.8,3781.6,5.01067]
[1717039000758,2.2765,3782.7,3782.0,0.799]
[1717039017013,2.2765,3782.7,3781.6,2.64437]
[1717039017182,2.64369,3782.6,3782.0,0.799]
[1717039017506,2.298,3782.5,3782.0,0.799]
[1717039017864,2.298,3782.5,3781.8,0.799]
[1717039018075,2.298,3782.5,3781.6,2.64437]
[1717039018270,2.298,3782.5,3781.6,3.44337]
[1717039022214,2.64382,3782.4,3781.6,3.44337]
[1717039022512,2.3717,3782.3,3781.6,1.393047]
[1717039024815,2.3717,3782.3,3781.6,0.594047]
[1717039025115,2.3717,3782.3,3781.6,0.799]
[1717039025717,2.64397,3782.2,3781.6,0.799]
[1717039034155,2.431,3781.5,3780.3,7.92968]
[1717039034441,2.431,3781.5,3780.3,4.92968]
[1717039034442,2.64454,3781.4,3780.3,4.92968]
[1717039034752,2.3162,3781.3,3780.6,0.799]
[1717039036039,0.496074,3781.2,3780.3,2.64528]
[1717039036203,0.496074,3781.2,3780.5,0.799]
[1717039036708,2.3162,3781.3,3780.5,0.799]
[1717039037294,2.3162,3781.3,3780.7,0.799]
[1717039040638,2.3162,3781.3,3780.9,0.799]
[1717039041772,2.3162,3781.3,3780.3,4.95238]
[1717039041907,2.3162,3781.3,3780.5,0.799]
[1717039043656,2.3162,3781.3,3780.3,4.95238]
[1717039044045,2.3162,3781.3,3780.6,0.799]
[1717039045256,2.3162,3781.3,3781.0,1.35]
[1717039050666,2.64454,3781.4,3781.0,1.35]
[1717039054762,2.3767,3781.7,3781.0,1.35]
[1717039054921,7.38,3782.0,3781.5,3.2827]
[1717039055855,7.38,3782.0,3781.5,2.4837]
[1717039056685,2.64386,3782.4,3781.5,2.4837]
[1717039061770,2.64386,3782.4,3781.5,3.2827]
[1717039068084,2.64386,3782.4,3781.7,0.799]
[1717039068296,2.64386,3782.4,3781.7,1.12727]
[1717039068501,2.64386,3782.4,3781.7,0.32827]
[1717039069626,7.38,3782.5,3781.8,2.321]
[1717039070264,7.37182516,3782.5,3781.8,2.321]
[1717039073875,2.3629,3782.4,3781.7,0.32827]
[1717039074208,2.3629,3782.4,3781.5,2.64444]
[1717039076313,10.01560516,3782.5,3781.6,0.799]
[1717039080491,10.01560516,3782.5,3781.9,2.2874]
[1717039085947,2.64378,3782.5,3781.9,2.2874]
[1717039088041,2.64378,3782.5,3782.0,0.799]
[1717039088220,2.64378,3782.5,3782.1,0.30864]
[1717039088929,12.36,3782.8,3782.1,0.30864]
[1717039089135,12.36,3782.8,3782.4,0.799]
[1717039089445,2.64347,3783.0,3782.4,0.799]
[1717039091045,7.37182516,3783.3,3782.4,0.799]
[1717039091248,7.37182516,3783.3,3782.6,0.799]
[1717039091549,5.1223,3783.5,3782.7,2.2872]
[1717039093280,2.6431,3783.5,3782.7,2.59582]
[1717039094258,2.6431,3783.5,3782.9,2.2833]
[1717039096670,2.6431,3783.5,3782.7,0.30862]
[1717039096873,3.4421,3783.5,3782.6,3.1021]
[1717039097396,2.6431,3783.5,3782.6,3.1021]
[1717039097549,2.6431,3783.5,3782.7,0.31021]
[1717039099905,2.6431,3783.5,3782.6,3.1021]
[1717039100812,2.64319,3783.3,3782.6,3.1021]
[1717039101823,2.64319,3783.3,3782.3,2.64384]
[1717039102118,2.64319,3783.3,3782.5,0.799]
[1717039107443,2.64319,3783.3,3782.4,2.3676]
[1717039107646,2.64319,3783.3,3782.7,0.799]
[1717039109009,7.37182516,3783.7,3782.8,2.3155]
[1717039110648,7.37182516,3783.7,3782.9,0.799]
[1717039112694,7.37182516,3783.7,3783.1,0.799]
[1717039114705,7.37182516,3783.7,3783.3,0.799]
[1717039114876,7.37182516,3783.7,3783.5,0.799]
[1717039115193,7.37182516,3783.7,3783.6,0.30801]
[1717039115393,7.37182516,3784.1,3783.7,2.4504]
[1717039115569,7.37182516,3784.1,3783.8,0.799]
[1717039116893,7.37182516,3784.1,3784.0,3.1072]
[1717039117107,7.37182516,3784.1,3784.0,4.84560144]
[1717039117303,7.32182516,3784.1,3784.0,4.84560144]
[1717039117598,0.799,3785.3,3784.1,2.4107]
[1717039117599,7.32182516,3785.3,3784.1,2.4107]
[1717039117782,2.64177,3785.4,3784.5,0.799]
[1717039118192,3.21351694,3785.4,3784.5,0.799]
[1717039118392,3.86201863,3785.4,3784.6,2.4107]
[1717039118596,0.57174694,3785.3,3784.6,2.4107]
[1717039119109,0.57174694,3785.3,3784.7,0.799]
[1717039119318,3.29027169,3785.4,3784.7,0.799]
[1717039119319,2.64177,3785.4,3784.7,0.799]
[1717039122698,2.64177,3785.4,3784.2,1.29789222]
[1717039122996,2.64177,3785.4,3784.5,0.799]
[1717039123317,2.64177,3785.4,3784.7,3.0962]
[1717039123487,2.64177,3785.4,3784.7,4.39409222]
[1717039126497,2.64141,3785.9,3785.3,0.799]
[1717039126702,3.21307842,3785.9,3785.4,0.31451]
[1717039126914,2.64141,3785.9,3785.3,0.799]
[1717039130213,2.64141,3785.9,3785.2,2.3461]
[1717039130412,2.64141,3785.9,3785.2,4.44299222]
[1717039132760,2.64141,3785.9,3785.6,0.799]
[1717039133364,2.64141,3785.9,3785.4,0.799]
[1717039133557,2.64141,3785.9,3785.5,0.44429922]
[1717039144786,2.64141,3785.9,3785.5,1.24329922]
[1717039150564,2.64141,3785.9,3785.5,0.44429922]
[1717039150765,2.64141,3785.9,3785.3,0.799]
[1717039151067,2.64141,3785.9,3785.5,0.799]
[1717039151301,7.32182516,3786.2,3785.5,0.799]
[1717039152161,7.32182516,3786.2,3785.3,1.29789222]
[1717039152365,7.32182516,3786.2,3785.5,0.799]
[1717039152685,7.32182516,3786.2,3785.7,2.4522]
[1717039153065,7.32182516,3786.2,3785.6,1.29789222]
[1717039153275,2.64108,3786.4,3785.6,1.29789222]
[1717039153473,3.21261575,3786.4,3785.6,1.29789222]
[1717039156977,0.57153739,3786.3,3785.6,1.29789222]
[1717039157310,3.21261739,3786.4,3785.7,0.49933914]
[1717039158714,3.21261739,3786.4,3785.7,1.29833914]
[1717039158999,3.21261739,3786.4,3785.7,2.59623136]
[1717039159201,3.21261739,3786.4,3785.8,2.457]
[1717039159202,2.64108,3786.4,3785.8,2.457]
[1717039159378,2.64108,3786.4,3785.9,0.50532314]
[1717039160906,3.21261739,3786.4,3785.9,0.50532314]
[1717039161117,3.21261739,3786.4,3785.9,1.80321536]
[1717039161319,2.64108,3786.4,3785.9,1.80321536]
[1717039161489,3.21257473,3786.4,3785.9,1.80321536]
[1717039161695,2.64108,3786.4,3786.0,0.50592154]
[1717039161894,3.21257449,3786.4,3786.0,0.50592154]
[1717039162121,2.64108,3786.4,3786.0,1.30492154]
[1717039162279,0.57148681,3786.5,3786.2,0.799]
[1717039162624,3.21222681,3786.9,3786.5,0.799]
[1717039163240,3.21222681,3786.9,3786.3,1.30498138]
[1717039163379,3.21222681,3786.9,3786.1,4.55389222]
[1717039163716,5.65822681,3786.9,3786.1,4.55389222]
[1717039163883,0.57148681,3786.8,3786.1,4.55389222]
[1717039166691,0.57148681,3786.8,3786.5,0.799]
[1717039167018,3.21222681,3786.9,3786.5,0.799]
[1717039167513,2.64074,3786.9,3786.5,0.799]
[1717039171044,2.64074,3786.9,3786.6,2.3071]
[1717039171204,2.64074,3786.9,3786.7,0.31061]
[1717039173057,0.57140922,3787.3,3786.7,1.60850222]
[1717039173358,7.32182516,3787.8,3787.3,2.387]
[1717039173504,7.32182516,3787.8,3787.4,0.799]
[1717039173844,2.64004,3787.9,3787.4,0.799]
[1717039174044,2.64004,3787.9,3787.6,0.799]
[1717039174548,2.64004,3787.9,3787.4,0.799]
[1717039174721,2.64004,3787.9,3787.5,0.3186]
[1717039174906,2.64015,3787.7,3786.9,2.4639]
[1717039175250,2.4496,3787.8,3786.6,3.2629]
[1717039175251,2.64027,3787.5,3786.6,3.2629]
[1717039175404,2.64027,3787.5,3786.6,4.56079222]
[1717039176024,2.64027,3787.5,3786.6,3.76179222]
[1717039176239,2.64027,3787.5,3786.6,4.93697144]
[1717039176422,2.64061,3787.0,3785.8,2.334]
[1717039176642,2.64061,3787.0,3786.2,0.799]
[1717039176823,2.64061,3787.0,3786.2,2.09689222]
[1717039177153,2.64061,3787.0,3785.8,2.334]
[1717039177352,3.43961,3787.0,3785.9,1.79543922]
[1717039177510,3.43961,3787.0,3786.0,0.799]
[1717039177711,3.43961,3787.0,3786.0,2.09689222]
[1717039177949,3.43961,3787.0,3786.0,1.29789222]
[1717039178149,3.43961,3787.0,3786.1,0.799]
[1717039178517,4.75041352,3787.0,3786.1,0.799]
[1717039179927,4.75041352,3787.0,3786.0,2.09689222]
[1717039180254,4.75041352,3787.0,3786.1,0.799]
[1717039181804,1.29789222,3786.7,3783.8,3.74987626]
[1717039181924,2.3466,3787.2,3783.9,1.37823731]
[1717039181925,2.64214,3784.8,3783.9,1.37823731]
[1717039182119,0.799,3784.7,3783.5,2.292]
[1717039182373,2.64214,3784.8,3784.4,0.799]
[1717039182661,2.64177,3785.4,3784.6,1.2432292]
[1717039183568,2.64177,3785.4,3784.7,0.799]
[1717039184331,2.64177,3785.4,3784.6,1.2432292]
[1717039186953,2.64177,3785.4,3784.7,1.29789222]
[1717039188299,2.6421,3784.9,3784.6,1.057572]
[1717039195375,2.6421,3784.9,3783.6,4.913]
[1717039195580,2.6421,3784.9,3783.7,2.83270122]
[1717039196173,2.64241,3784.5,3783.7,2.83270122]
[1717039199683,2.64267,3784.1,3783.7,2.28270122]
[1717039200003,2.64267,3784.1,3783.7,1.29789222]
[1717039203149,2.64232,3784.6,3783.7,1.29789222]
[1717039203325,2.64196,3785.1,3783.9,1.29789222]
[1717039203655,2.64158,3785.6,3784.7,2.4812]
[1717039203954,2.64158,3785.6,3784.8,1.84789222]
[1717039208378,2.64158,3785.6,3784.8,1.29789222]
[1717039216465,2.64158,3785.6,3784.9,0.797]
[1717039216667,2.64158,3785.6,3785.0,1.75550144]
[1717039216965,2.64158,3785.6,3785.0,1.29789222]
[1717039218010,2.64158,3785.6,3785.2,0.797]
[1717039218219,7.32182516,3786.2,3785.4,0.797]
[1717039218220,2.64129,3786.1,3785.4,0.797]
[1717039218520,2.64129,3786.1,3785.4,2.09489222]
[1717039218815,2.64129,3786.1,3785.5,2.2964]
[1717039221087,2.64153,3785.7,3785.1,2.2531]
[1717039221291,2.64153,3785.7,3785.1,4.34799222]
[1717039221719,2.64172,3785.5,3784.3,5.64243]
[1717039222021,0.797,3785.6,3784.5,0.797]
[1717039222179,0.797,3785.6,3784.7,0.797]
[1717039222374,7.32182516,3785.7,3784.7,2.09489222]
[1717039222592,8.13370768,3785.7,3784.7,2.09489222]
[1717039222924,2.64181,3785.3,3784.7,2.09489222]
[1717039224211,7.32182516,3785.7,3785.1,0.797]
[1717039224515,2.64149,3785.8,3785.1,1.29789222]
[1717039225702,2.64149,3785.8,3785.2,1.29789222]
[1717039226833,2.64149,3785.8,3785.2,1.67740144]
[1717039227642,7.32182516,3786.1,3785.2,1.67740144]
[1717039227839,7.32182516,3786.1,3785.3,0.55]
[1717039228000,7.32182516,3786.1,3785.4,1.29789222]
[1717039229503,15.00113,3786.3,3785.4,1.29789222]
[1717039229504,2.64113,3786.3,3785.4,1.29789222]
[1717039230048,3.69457953,3786.3,3785.4,1.29789222]
[1717039230208,2.64126,3786.1,3785.4,1.29789222]
[1717039232607,0.57154013,3786.2,3785.5,2.3903]
[1717039232860,7.32182516,3786.5,3785.6,1.84789222]
[1717039238235,2.64094,3786.6,3785.7,2.2796]
[1717039238458,2.64094,3786.6,3785.8,1.71064144]
[1717039243302,2.64094,3786.6,3785.9,0.55]
[1717039243508,2.64094,3786.6,3786.0,1.29789222]
[1717039249498,2.64094,3786.6,3785.8,0.41274922]
[1717039249699,2.64094,3786.6,3785.9,1.29789222]
[1717039260479,3.21240251,3786.6,3785.9,1.29789222]
[1717039260677,2.64094,3786.6,3785.9,1.29789222]
[1717039260841,3.21240235,3786.6,3785.9,1.29789222]
[1717039263129,0.57146235,3786.6,3785.9,1.77661636]
[1717039263428,7.32182516,3786.9,3786.3,2.4372]
[1717039263725,7.32182516,3786.9,3786.7,0.797]
[1717039264031,2.64062,3787.0,3786.7,0.797]
[1717039265406,0.5713492,3787.4,3786.7,0.797]
[1717039265726,0.5713492,3787.4,3786.8,1.29789222]
[1717039266239,9.96214516,3787.5,3786.8,1.29789222]
[1717039267702,9.96214516,3787.5,3786.8,1.50738144]
[1717039267703,2.64032,3787.5,3786.8,1.50738144]
[1717039270612,3.43732,3787.5,3786.3,5.07828]
[1717039270923,3.43732,3787.5,3786.5,0.797]
[1717039271104,3.43732,3787.5,3786.6,1.29789222]
[1717039271518,0.797,3787.3,3786.6,1.29789222]
[1717039273753,2.64049,3787.2,3786.6,1.29789222]
[1717039274107,2.64049,3787.2,3785.8,0.67115281]
[1717039274108,2.64076,3786.8,3785.8,5.42584922]
[1717039274309,2.64076,3786.8,3785.9,1.29789222]
[1717039275146,2.64076,3786.8,3786.3,2.3717]
[1717039275345,2.64076,3786.8,3786.4,1.29789222]
[1717039281547,2.64076,3786.8,3785.8,5.0831]
[1717039281864,2.4528,3786.7,3785.9,2.60320222]
[1717039292981,2.4528,3786.7,3786.1,0.797]
[1717039294702,2.4528,3786.7,3785.9,1.80620222]
[1717039294897,3.43796,3786.5,3785.2,0.37950922]
[1717039295102,2.64117,3786.2,3785.4,0.797]
[1717039295400,2.64117,3786.2,3785.5,1.29789222]
[1717039296807,2.64117,3786.2,3785.6,0.797]
[1717039298078,3.222807,3786.2,3785.2,0.37950922]
[1717039298272,3.222807,3786.2,3785.3,2.09489222]
[1717039298470,2.64117,3786.2,3785.5,0.797]
[1717039298666,2.64117,3786.2,3785.6,2.09489222]
[1717039299099,2.64117,3786.2,3785.7,2.4842]
[1717039299286,2.64117,3786.2,3785.7,3.78209222]
[1717039303236,2.64117,3786.2,3785.8,1.29789222]
[1717039303434,2.64117,3786.2,3785.9,0.45790922]
[1717039304013,7.32182516,3786.6,3785.9,0.45790922]
[1717039304207,7.32182516,3786.6,3785.8,2.09489222]
[1717039304608,7.32182516,3786.6,3786.0,0.797]
[1717039304818,7.32182516,3786.6,3786.0,2.09489222]
[1717039305337,7.32182516,3786.6,3786.2,0.797]
[1717039305537,2.4885,3786.5,3786.0,1.29789222]
[1717039306227,2.64103,3786.4,3785.5,2.64158]
[1717039306425,2.64103,3786.4,3785.6,2.09489222]
[1717039310973,2.64103,3786.4,3785.6,1.29789222]
[1717039311276,2.64103,3786.4,3785.7,0.797]
[1717039311431,2.64103,3786.4,3785.7,2.09489222]
[1717039314571,2.64103,3786.4,3785.7,1.29789222]
[1717039320608,2.64103,3786.4,3785.7,1.55674824]
[1717039321993,2.64103,3786.4,3785.7,2.35374824]
[1717039323112,2.64103,3786.4,3786.0,0.797]
[1717039324212,2.64074,3786.9,3786.2,0.797]
[1717039324393,7.32182516,3787.3,3786.8,0.797]
[1717039324602,0.57137264,3787.2,3787.1,0.797]
[1717039324912,2.6404,3787.4,3786.3,0.20948922]
[1717039325070,5.05458,3787.2,3785.9,2.64133]
[1717039325275,2.64066,3787.0,3786.0,1.29789222]
[1717039325535,2.4141,3786.7,3786.0,1.29789222]
[1717039326238,2.64095,3786.6,3785.6,0.797]
[1717039326439,3.21238911,3786.6,3785.8,0.797]
[1717039326640,3.21238911,3786.6,3785.9,1.29789222]
[1717039327442,2.64095,3786.6,3785.9,1.29789222]
[1717039327929,3.21242361,3786.6,3785.9,1.29789222]
[1717039328104,2.64095,3786.6,3785.9,1.29789222]
[1717039328300,3.21242379,3786.6,3785.9,1.29789222]
[1717039328532,2.64095,3786.6,3785.9,1.29789222]
[1717039330189,3.21242109,3786.6,3785.9,1.29789222]
[1717039330417,2.64095,3786.6,3785.9,1.29789222]
[1717039331128,3.21242096,3786.6,3785.9,1.29789222]
[1717039331507,2.64095,3786.6,3785.9,1.29789222]
[1717039332034,3.21242105,3786.6,3785.9,1.29789222]
[1717039332438,2.64095,3786.6,3785.9,1.29789222]
[1717039333030,3.21241798,3786.6,3785.9,1.29789222]
[1717039333710,2.64095,3786.6,3785.9,1.29789222]
[1717039334204,3.21241667,3786.6,3785.9,1.29789222]
[1717039334640,2.64095,3786.6,3785.9,1.29789222]
[1717039335433,3.21241934,3786.6,3785.9,1.29789222]
[1717039335795,3.21241934,3786.6,3785.8,0.797]
[1717039336024,2.64107,3786.4,3785.7,0.797]
[1717039336227,2.64107,3786.4,3785.7,2.09489222]
[1717039344778,2.3448,3786.0,3785.0,3.0]
[1717039344970,2.3448,3786.0,3785.3,0.797]
[1717039345142,2.3448,3786.0,3785.3,1.29789222]
[1717039345778,2.3448,3786.0,3785.3,2.09489222]
[1717039346078,2.3448,3786.0,3785.3,2.30438144]
[1717039346444,2.3448,3786.0,3785.5,0.797]
[1717039353865,2.3448,3786.0,3785.6,1.29789222]
[1717039354195,2.6413,3786.1,3785.6,1.29789222]
[1717039371084,2.4342,3786.3,3785.7,0.797]
[1717039371312,7.32182516,3786.5,3785.9,0.797]
[1717039371514,7.32182516,3786.5,3786.1,0.797]
[1717039371718,7.32182516,3786.5,3786.3,0.797]
[1717039371915,7.32182516,3786.5,3786.1,0.797]
[1717039372308,7.27182516,3786.5,3786.1,0.797]
[1717039372631,7.27182516,3786.5,3786.2,0.20948922]
[1717039373129,2.64094,3786.6,3786.2,0.20948922]
[1717039374320,2.64094,3786.6,3786.1,0.797]
[1717039374529,2.64094,3786.6,3786.0,1.29789222]
[1717039375596,2.64094,3786.6,3786.1,0.797]
[1717039379437,2.64094,3786.6,3786.0,1.29789222]
[1717039379611,2.3977,3786.5,3785.7,0.20948922]
[1717039379804,2.3977,3786.5,3785.7,1.00648922]
[1717039380317,2.3977,3786.5,3785.7,0.797]
[1717039380534,2.64107,3786.4,3785.3,5.26104148]
[1717039380696,2.64107,3786.4,3785.4,2.09489222]
[1717039380899,2.64107,3786.4,3785.6,0.797]
[1717039381195,2.64107,3786.4,3785.6,2.09489222]
[1717039382948,2.64107,3786.4,3785.6,1.29789222]
[1717039383146,2.64107,3786.4,3785.3,4.99465]
[1717039383147,2.64119,3786.2,3785.3,4.99465]
[1717039383450,2.64119,3786.2,3785.6,0.797]
[1717039385341,2.64119,3786.2,3785.4,1.79735722]
[1717039385342,2.4925,3786.5,3785.9,0.797]
[1717039385546,5.13333,3786.7,3785.9,2.09489222]
[1717039385769,5.13333,3786.7,3786.1,0.797]
[1717039386545,5.13333,3786.7,3785.9,2.09489222]
[1717039386855,5.13333,3786.7,3785.9,2.59028144]
[1717039387716,5.13333,3786.7,3785.9,1.79328144]
[1717039387950,5.13333,3786.7,3785.9,1.29789222]
[1717039388747,2.3996,3786.2,3785.4,0.499465]
[1717039388950,2.3996,3786.2,3785.6,0.797]
[1717039389124,2.3996,3786.2,3785.6,2.09489222]
[1717039389536,2.3996,3786.2,3785.6,1.29789222]
[1717039390961,2.64126,3786.1,3785.6,1.29789222]
[1717039391561,2.64126,3786.1,3785.4,0.499465]
[1717039391857,2.64126,3786.1,3785.4,2.09489222]
[1717039394056,2.64126,3786.1,3785.4,1.29789222]
[1717039396740,2.64152,3785.7,3785.0,2.3975]
[1717039396937,2.64152,3785.7,3785.1,1.29789222]
[1717039397140,2.3276,3785.6,3784.9,0.797]
[1717039397354,2.3276,3785.6,3785.0,1.87770822]
[1717039397559,2.3276,3785.6,3785.0,0.579816]
[1717039397757,2.3276,3785.6,3784.9,0.797]
[1717039397943,2.3276,3785.6,3784.9,2.09489222]
[1717039398153,2.6417,3785.5,3784.9,0.797]
[1717039398351,2.3276,3785.4,3784.2,8.0015]
[1717039398566,2.3276,3785.4,3784.5,0.797]
[1717039398764,2.3276,3785.4,3784.6,0.20948922]
[1717039399634,2.3276,3785.4,3784.7,0.797]
[1717039401567,2.3276,3785.4,3784.6,0.20948922]
[1717039401775,2.3276,3785.4,3784.6,1.00648922]
[1717039411291,2.3276,3785.4,3784.6,0.20948922]
[1717039411462,2.3276,3785.4,3784.7,0.15073814]
[1717039419188,2.64184,3785.3,3784.7,0.15073814]
[1717039422726,2.3973,3785.2,3784.7,0.15073814]
[1717039422904,2.64196,3785.1,3784.7,0.15073814]
[1717039431340,2.2951,3785.0,3784.5,1.29789222]
[1717039438163,2.64208,3784.9,3784.5,1.29789222]
[1717039442401,2.3587,3784.6,3783.7,0.797]
[1717039442525,2.3587,3784.6,3783.8,1.29789222]
[1717039442728,2.3587,3784.6,3783.9,0.20948922]
[1717039443054,2.3587,3784.6,3784.0,1.29789222]
[1717039443276,2.93047745,3784.6,3784.0,1.29789222]
[1717039443595,2.3587,3784.6,3784.0,1.29789222]
[1717039444108,2.64236,3784.5,3784.0,1.29789222]
[1717039444255,2.64236,3784.5,3783.4,4.99451]
[1717039444487,2.64254,3784.3,3783.7,0.797]
[1717039444692,2.64254,3784.3,3783.8,1.29789222]
[1717039446411,2.64254,3784.3,3783.5,1.402243]
[1717039446560,2.64266,3784.1,3783.5,2.09489222]
[1717039453427,12.40734516,3784.6,3783.9,0.797]
[1717039453604,12.40734516,3784.6,3783.9,2.09489222]
[1717039453805,12.40734516,3784.6,3783.7,2.2915]
[1717039453806,9.91414516,3784.6,3784.3,0.797]
[1717039454298,9.91414516,3784.6,3784.1,0.797]
[1717039454505,9.91414516,3784.6,3784.2,1.29789222]
[1717039458139,2.64232,3784.6,3784.2,1.29789222]
[1717039466831,9.91382516,3785.1,3784.5,0.797]
[1717039467004,2.4279,3785.3,3784.7,0.797]
[1717039467188,4.95909,3785.6,3785.1,0.797]
[1717039467588,4.95909,3785.6,3785.0,0.797]
[1717039468733,4.95909,3785.6,3785.1,1.29789222]
[1717039470531,4.95909,3785.6,3784.4,5.01492]
[1717039470693,4.95909,3785.6,3784.7,0.797]
[1717039470893,4.95909,3785.6,3784.7,2.09489222]
[1717039471906,4.95909,3785.6,3784.8,0.797]
[1717039472932,4.95909,3785.6,3785.0,0.797]
[1717039473779,4.95909,3785.6,3784.8,0.797]
[1717039475968,2.64173,3785.4,3784.7,1.29789222]
[1717039476171,2.64173,3785.4,3784.7,2.09489222]
[1717039477632,2.369,3785.3,3784.4,2.64242]
[1717039477934,2.369,3785.3,3784.6,0.797]
[1717039479267,2.64192,3785.2,3784.4,1.29789222]
[1717039479472,2.64192,3785.2,3784.3,0.797]
[1717039481575,2.64192,3785.2,3784.4,1.29789222]
[1717039481876,2.64192,3785.2,3784.7,0.797]
[1717039482181,2.4769,3785.6,3785.1,0.797]
[1717039483947,2.64153,3785.7,3785.3,0.797]
[1717039484258,2.64153,3785.7,3785.1,2.30438144]
[1717039486283,2.64153,3785.7,3785.1,2.09489222]
[1717039487787,2.64153,3785.7,3785.0,0.797]
[1717039488084,2.64153,3785.7,3784.4,2.6424]
[1717039488418,2.64153,3785.7,3785.0,0.797]
[1717039490935,2.64153,3785.7,3784.5,1.29789222]